fUST/lending_fUST_20240110
["ID","MTS","AMOUNT","RATE_DAILY","PERIOD"]
[311039221,1704886238809,-500.0,0.00023288,2]
[311039223,1704886238822,-500.0,0.00023288,2]
[311039226,1704886238835,-500.0,0.00023288,2]
[311039228,1704886238846,-500.0,0.00023288,2]
[311039230,1704886238857,-500.0,0.00023288,2]
[311039232,1704886238867,-500.0,0.00023288,2]
[311039234,1704886238876,-500.0,0.00023288,2]
[311039236,1704886238886,-500.0,0.00023288,2]
[311039238,1704886238898,-307.60705849,0.00023288,2]
[311039241,1704886238910,-499.99999999,0.00023288,2]
[311039243,1704886238921,-524.48668192,0.00023288,2]
[311039245,1704886238931,-524.48668192,0.00023288,2]
[311039246,1704886238943,-524.48668192,0.00023288,2]
[311039247,1704886238955,-524.48668192,0.00023288,2]
[311039248,1704886238965,-524.48668192,0.00023288,2]
[311039249,1704886238975,-524.48668192,0.00023288,2]
[311039250,1704886238986,-524.48668192,0.00023288,2]
[311039251,1704886238996,-524.48668192,0.00023288,2]
[311039252,1704886239007,-524.48668192,0.00023288,2]
[311039253,1704886239017,-524.48668192,0.00023288,2]
[311039254,1704886239028,-524.48668192,0.00023288,2]
[311039255,1704886239039,-524.48668192,0.00023288,2]
[311039256,1704886239050,-524.48668192,0.00023288,2]
[311039257,1704886239060,-524.48668192,0.00023288,2]
[311039258,1704886239071,-524.48668192,0.00023288,2]
[311039259,1704886239081,-524.48668189,0.00023288,2]
[311039260,1704886239092,-524.48668188,0.00023288,2]
[311039261,1704886239103,-208.70435716,0.00023288,2]
[311039262,1704886239114,-166.666666,0.00023456,2]
[311039263,1704886239124,-166.666666,0.00023969,2]
[311039264,1704886239135,-154.8915759,0.00024,2]
[311039265,1704886239146,-614.01289661,0.00024,2]
[311039266,1704886239156,-2293.16748545,0.00024,2]
[311039267,1704886239167,-3498.1239256,0.00024185,2]
[311039268,1704886239178,-166.666666,0.00024482,2]
[311039269,1704886239188,-2938.07558047,0.00024658,2]
[311039270,1704886239199,-199.005618,0.00024658,2]
[311039271,1704886239209,-155.27793956,0.00024679,2]
[311039272,1704886239220,-542.56772168,0.00024679,2]
[311039273,1704886239231,-1328.32730792,0.00024679,2]
[311039274,1704886239242,-182.21765281,0.00024679,2]
[311039275,1704886239253,-162.35098873,0.0002468,2]
[311039276,1704886239265,-4336.63880828,0.0002468,2]
[311039277,1704886239275,-155.09608849,0.0002468,2]
[311039278,1704886239286,-250.45496536,0.0002468,2]
[311039279,1704886239297,-309.55106817,0.00024681,2]
[311039280,1704886239307,-999.20063949,0.00024682,2]
[311039281,1704886239318,-1376.81143133,0.00024682,2]
[311039282,1704886239329,-19385.37727301,0.00024683,2]
[311039283,1704886239340,-454.89181024,0.00024683,2]
[311039284,1704886239351,-497.00944952,0.0002498,5]
[311039285,1704886239362,-408.1380639,0.00024996,2]
[311039286,1704886239373,-677.45880314,0.00025,2]
[311039287,1704886239384,-3000.0,0.00025,2]
[311039288,1704886239394,-4711.08145103,0.00025,2]
[311039289,1704886239405,-154.92253873,0.00025,2]
[311039290,1704886239416,-155.10911915,0.00025,2]
[311039291,1704886239427,-154.8915759,0.00025,2]
[311039292,1704886239438,-882.98470053,0.0002582,2]
[311039293,1704886239449,-525.91402641,0.00026,2]
[311039294,1704886239460,-2126.09470477,0.00026,2]
[311039295,1704886239470,-3612.07378676,0.00026,2]
[311039296,1704886239481,-882.03994026,0.00026176,2]
[311039297,1704886239492,-452.762046,0.00026228,2]
[311039298,1704886239503,-620.17254916,0.000264,2]
[311039299,1704886239514,-3089.70069499,0.00026898,2]
[311039300,1704886239525,-1391.6033628,0.000269,2]
[311039301,1704886239536,-154.92253873,0.00027,2]
[311039302,1704886239548,-733.25771754,0.00027,2]
[311039303,1704886239559,-154.92253873,0.00027,2]
[311039304,1704886239569,-763.40324942,0.00027,2]
[311039305,1704886239580,-1821.85168105,0.00027,2]
[311039306,1704886239591,-211.29574429,0.00027,2]
[311039308,1704886239601,-2000.0,0.00027,2]
[311039310,1704886239609,-1500.0,0.00027,2]
[311039312,1704886239619,-2000.0,0.0002701,2]
[311039313,1704886239628,-2000.0,0.0002702,2]
[311039315,1704886239638,-2000.0,0.0002703,2]
[311039327,1704886239797,-2000.0,0.0002704,2]
[311039328,1704886239811,-2000.0,0.0002705,2]
[311039329,1704886239820,-2000.0,0.0002706,2]
[311039330,1704886239830,-2000.0,0.0002707,2]
[311039331,1704886239839,-2000.0,0.0002708,2]
[311039332,1704886239849,-724.60445925,0.00027081,2]
[311039333,1704886239858,-263.7943585,0.00027081,2]
[311039334,1704886239867,-1110.46572871,0.00027081,2]
[311039335,1704886239876,-309.69032205,0.00027081,2]
[311039336,1704886239885,-218.876125,0.00027082,2]
[311039337,1704886239895,-2000.0,0.0002709,2]
[311039338,1704886239904,-2000.0,0.000271,2]
[311039339,1704886239913,-2000.0,0.0002711,2]
[311039340,1704886239922,-2000.0,0.0002712,2]
[311039341,1704886239932,-2000.0,0.0002713,2]
[311039342,1704886239940,-2000.0,0.0002714,2]
[311039343,1704886239950,-2000.0,0.0002715,2]
[311039344,1704886239959,-2000.0,0.0002716,2]
[311039345,1704886239968,-2000.0,0.0002717,2]
[311039346,1704886239977,-2000.0,0.0002718,2]
[311039347,1704886239987,-329.401343,0.00027182,2]
[311039348,1704886239996,-329.401343,0.00027182,2]
[311039349,1704886240006,-396.01751726,0.00027183,2]
[311039350,1704886240015,-1389.25819117,0.00027183,2]
[311039351,1704886240024,-50514.70345771,0.00027183,2]
[311039352,1704886240033,-5000.0,0.00027183,2]
[311039353,1704886240042,-40719.54035871,0.00027183,2]
[311039354,1704886240051,-5000.0,0.00027183,2]
[311039355,1704886240061,-89020.6332092,0.00027183,2]
[311039356,1704886240070,-64673.75628874,0.00027183,2]
[311039357,1704886240080,-15810.90016451,0.00027183,2]
[311039358,1704886240090,-151.0,0.00027183,2]
[311039359,1704886240099,-329.401343,0.00027183,2]
[311039360,1704886240109,-329.401343,0.00027183,2]
[311039361,1704886240119,-329.401343,0.00027183,2]
[311039362,1704886240129,-329.401343,0.00027183,2]
[311039363,1704886240138,-658.741789,0.00027183,2]
[311039364,1704886240149,-658.741789,0.00027183,2]
[311039365,1704886240159,-658.741789,0.00027183,2]
[311039366,1704886240168,-658.741789,0.00027183,2]
[311039367,1704886240178,-2079.751713,0.0002719,2]
[311039368,1704886240187,-408.1380639,0.00027197,2]
[311039369,1704886240197,-151.0,0.00027297,2]
[311039370,1704886240208,-329.401343,0.00027297,2]
[311039371,1704886240221,-329.401343,0.00027297,2]
[311039372,1704886240233,-658.741789,0.00027297,2]
[311039373,1704886240242,-658.741789,0.00027297,2]
[311039374,1704886240252,-32113.65059237,0.00027297,2]
[311039375,1704886240262,-151.0,0.00027397,2]
[311039376,1704886240272,-151.0,0.00027397,2]
[311039377,1704886240281,-296.0,0.00027397,2]
[311039378,1704886240291,-329.401343,0.00027397,2]
[311039379,1704886240300,-329.401343,0.00027397,2]
[311039380,1704886240310,-329.401343,0.00027397,2]
[311039381,1704886240326,-329.401343,0.00027397,2]
[311039382,1704886240337,-329.401343,0.00027397,2]
[311039383,1704886240346,-329.401343,0.00027397,2]
[311039384,1704886240355,-329.401343,0.00027397,2]
[311039385,1704886240365,-329.401343,0.00027397,2]
[311039386,1704886240374,-658.741789,0.00027397,2]
[311039387,1704886240383,-658.741789,0.00027397,2]
[311039388,1704886240392,-658.741789,0.00027397,2]
[311039389,1704886240401,-658.741789,0.00027397,2]
[311039390,1704886240410,-658.741789,0.00027397,2]
[311039391,1704886240420,-658.741789,0.00027397,2]
[311039392,1704886240429,-501.02043593,0.00027397,2]
[311039393,1704886240439,-500.0,0.00027397,2]
[311039394,1704886240448,-500.0,0.00027397,2]
[311039395,1704886240458,-500.0,0.00027397,2]
[311039396,1704886240467,-500.0,0.00027397,2]
[311039397,1704886240477,-500.0,0.00027397,2]
[311039398,1704886240487,-500.62912109,0.00027397,2]
[311039399,1704886240498,-500.62188728,0.00027397,2]
[311039400,1704886240507,-634.62797387,0.00027397,2]
[311039401,1704886240516,-502.30868847,0.00027397,2]
[311039402,1704886240525,-500.0,0.00027397,2]
[311039403,1704886240533,-500.0,0.00027397,2]
[311039404,1704886240543,-501.19540855,0.00027397,2]
[311039405,1704886240553,-501.75915698,0.00027397,2]
[311039406,1704886240563,-500.0,0.00027397,2]
[311039407,1704886240572,-500.0,0.00027397,2]
[311039408,1704886240581,-500.0,0.00027397,2]
[311039409,1704886240592,-503.05323719,0.00027397,2]
[311039410,1704886240601,-500.0,0.00027397,2]
[311039411,1704886240611,-501.51100543,0.00027397,2]
[311039412,1704886240621,-500.0,0.00027397,2]
[311039413,1704886240630,-500.0,0.00027397,2]
[311039414,1704886240639,-500.0,0.00027397,2]
[311039415,1704886240649,-500.0,0.00027397,2]
[311039416,1704886240658,-500.0,0.00027397,2]
[311039417,1704886240668,-500.0,0.00027397,2]
[311039418,1704886240676,-502.64056547,0.00027397,2]
[311039419,1704886240685,-500.0,0.00027397,2]
[311039420,1704886240694,-500.0,0.00027397,2]
[311039421,1704886240703,-211.07566614,0.00027397,2]
[311039422,1704886240712,-501.31877181,0.00027397,2]
[311039423,1704886240721,-500.0,0.00027397,2]
[311039424,1704886240730,-500.0,0.00027397,2]
[311039425,1704886240741,-1985.25,0.00027397,2]
[311039426,1704886240751,-500.0,0.00027397,2]
[311039427,1704886240764,-500.0,0.00027397,2]
[311039428,1704886240774,-200.0,0.00027397,2]
[311039429,1704886240785,-307.60449464,0.00027397,2]
[311039430,1704886240795,-510.62,0.00027397,2]
[311039431,1704886240805,-502.85008081,0.00027397,2]
[311039432,1704886240815,-500.0,0.00027397,2]
[311039433,1704886240824,-500.0,0.00027397,2]
[311039434,1704886240834,-421.98401203,0.00027397,2]
[311039435,1704886240844,-500.0,0.00027397,2]
[311039436,1704886240853,-500.0,0.00027397,2]
[311039437,1704886240862,-500.0,0.00027397,2]
[311039438,1704886240871,-500.0,0.00027397,2]
[311039439,1704886240880,-500.0,0.00027397,2]
[311039440,1704886240889,-500.0,0.00027397,2]
[311039441,1704886240898,-500.0,0.00027397,2]
[311039442,1704886240907,-500.0,0.00027397,2]
[311039443,1704886240915,-500.0,0.00027397,2]
[311039444,1704886240924,-500.0,0.00027397,2]
[311039445,1704886240933,-500.0,0.00027397,2]
[311039446,1704886240942,-501.62766761,0.00027397,2]
[311039447,1704886240951,-500.0,0.00027397,2]
[311039448,1704886240960,-515.0953029,0.00027397,2]
[311039449,1704886240969,-500.0,0.00027397,2]
[311039450,1704886240978,-744.55,0.00027397,2]
[311039451,1704886240987,-519.03132997,0.00027397,2]
[311039452,1704886240997,-500.0,0.00027397,2]
[311039453,1704886241007,-600.0,0.00027397,2]
[311039454,1704886241017,-500.0,0.00027397,2]
[311039455,1704886241027,-500.0,0.00027397,2]
[311039456,1704886241037,-1313.75,0.00027397,2]
[311039457,1704886241047,-500.0,0.00027397,2]
[311039458,1704886241058,-500.0,0.00027397,2]
[311039459,1704886241068,-502.83552207,0.00027397,2]
[311039460,1704886241077,-494.86882139,0.00027397,14]
[311039461,1704886241088,-500.0,0.00027397,2]
[311039462,1704886241097,-231.27172654,0.00027397,2]
[311039463,1704886241107,-500.0,0.00027397,2]
[311039464,1704886241117,-500.0,0.00027397,2]
[311039465,1704886241126,-500.0,0.00027397,2]
[311039466,1704886241136,-500.0,0.00027397,2]
[311039467,1704886241147,-500.0,0.00027397,2]
[311039468,1704886241158,-501.34716716,0.00027397,2]
[311039469,1704886241168,-659.78,0.00027397,2]
[311039470,1704886241177,-500.0,0.00027397,2]
[311039471,1704886241188,-501.60375425,0.00027397,2]
[311039472,1704886241197,-500.0,0.00027397,2]
[311039473,1704886241208,-500.0,0.00027397,2]
[311039474,1704886241218,-500.0,0.00027397,2]
[311039475,1704886241227,-503.16131874,0.00027397,2]
[311039476,1704886241237,-1355.82,0.00027397,2]
[311039477,1704886241248,-503.49423838,0.00027397,2]
[311039478,1704886241257,-500.61378219,0.00027397,2]
[311039479,1704886241268,-507.50639236,0.00027397,2]
[311039480,1704886241278,-500.0,0.00027397,2]
[311039481,1704886241287,-500.0,0.00027397,2]
[311039482,1704886241295,-500.0,0.00027397,2]
[311039484,1704886241305,-500.0,0.00027397,2]
[311039485,1704886241316,-501.46967249,0.00027397,2]
[311039486,1704886241327,-522.09370799,0.00027397,2]
[311039488,1704886241337,-502.37533265,0.00027397,2]
[311039489,1704886241347,-500.0,0.00027397,2]
[311039490,1704886241356,-501.1581429,0.00027397,2]
[311039491,1704886241366,-500.0,0.00027397,2]
[311039492,1704886241375,-500.0,0.00027397,2]
[311039493,1704886241385,-20035.59365478,0.00027397,10]
[311039494,1704886241396,-500.0,0.00027397,2]
[311039495,1704886241405,-502.47780367,0.00027397,2]
[311039496,1704886241415,-500.0,0.00027397,2]
[311039497,1704886241425,-929.76,0.00027397,2]
[311039498,1704886241435,-500.0,0.00027397,2]
[311039500,1704886241445,-762.79300443,0.00027397,2]
[311039501,1704886241454,-501.33305653,0.00027397,2]
[311039503,1704886241464,-510.22720106,0.00027397,2]
[311039505,1704886241473,-1022.56,0.00027397,2]
[311039507,1704886241483,-500.0,0.00027397,2]
[311039508,1704886241492,-503.20325283,0.00027397,2]
[311039509,1704886241502,-502.97512192,0.00027397,2]
[311039511,1704886241514,-500.0,0.00027397,2]
[311039513,1704886241523,-402.09100132,0.00027397,2]
[311039515,1704886241532,-500.0,0.00027397,2]
[311039516,1704886241543,-1532.92,0.00027397,2]
[311039517,1704886241553,-500.0,0.00027397,2]
[311039518,1704886241562,-566.1607247,0.00027397,2]
[311039519,1704886241572,-500.0,0.00027397,2]
[311039520,1704886241582,-501.51045553,0.00027397,2]
[311039521,1704886241592,-500.0,0.00027397,2]
[311039522,1704886241602,-517.01672452,0.00027397,2]
[311039523,1704886241613,-500.0,0.00027397,2]
[311039524,1704886241624,-500.0,0.00027397,2]
[311039525,1704886241634,-500.0,0.00027397,2]
[311039526,1704886241644,-501.10416106,0.00027397,2]
[311039527,1704886241654,-500.0,0.00027397,2]
[311039528,1704886241664,-599.21,0.00027397,2]
[311039529,1704886241674,-500.0,0.00027397,2]
[311039530,1704886241684,-500.0,0.00027397,2]
[311039531,1704886241694,-501.78053641,0.00027397,2]
[311039532,1704886241704,-500.0,0.00027397,2]
[311039533,1704886241714,-500.0,0.00027397,2]
[311039534,1704886241723,-1558.18,0.00027397,2]
[311039535,1704886241734,-552.33,0.00027397,2]
[311039536,1704886241744,-500.0,0.00027397,2]
[311039537,1704886241753,-500.0,0.00027397,2]
[311039538,1704886241764,-500.0,0.00027397,2]
[311039539,1704886241775,-500.0,0.00027397,2]
[311039540,1704886241786,-503.00030109,0.00027397,2]
[311039541,1704886241796,-1323.25,0.00027397,2]
[311039542,1704886241809,-500.0,0.00027397,2]
[311039543,1704886241819,-500.0,0.00027397,2]
[311039544,1704886241830,-500.0,0.00027397,2]
[311039545,1704886241842,-1001.38259395,0.00027397,2]
[311039546,1704886241853,-819.73,0.00027397,2]
[311039547,1704886241864,-504.41726563,0.00027397,2]
[311039548,1704886241874,-500.0,0.00027397,2]
[311039549,1704886241884,-500.0,0.00027397,2]
[311039550,1704886241894,-502.65996338,0.00027397,2]
[311039551,1704886241905,-502.72683891,0.00027397,2]
[311039552,1704886241915,-506.2982467,0.00027397,2]
[311039553,1704886241926,-309.91038177,0.00027397,5]
[311039554,1704886241936,-500.0,0.00027397,2]
[311039555,1704886241947,-500.66775379,0.00027397,2]
[311039556,1704886241958,-294.44703932,0.00027397,2]
[311039557,1704886241969,-500.0,0.00027397,2]
[311039558,1704886241979,-501.29303316,0.00027397,2]
[311039559,1704886241990,-500.0,0.00027397,2]
[311039560,1704886242001,-500.0,0.00027397,2]
[311039561,1704886242011,-678.1,0.00027397,2]
[311039562,1704886242022,-678.1,0.00027397,2]
[311039563,1704886242032,-678.1,0.00027397,2]
[311039564,1704886242042,-678.1,0.00027397,2]
[311039565,1704886242052,-678.1,0.00027397,2]
[311039566,1704886242061,-678.1,0.00027397,2]
[311039567,1704886242072,-678.1,0.00027397,2]
[311039568,1704886242083,-678.1,0.00027397,2]
[311039569,1704886242093,-678.1,0.00027397,2]
[311039570,1704886242103,-678.1,0.00027397,2]
[311039571,1704886242113,-678.1,0.00027397,2]
[311039572,1704886242124,-678.1,0.00027397,2]
[311039573,1704886242134,-678.1,0.00027397,2]
[311039574,1704886242144,-678.1,0.00027397,2]
[311039575,1704886242156,-678.1,0.00027397,2]
[311039576,1704886242167,-678.1,0.00027397,2]
[311039577,1704886242177,-155.0,0.00027397,2]
[311039578,1704886242187,-678.1,0.00027397,2]
[311039579,1704886242198,-678.1,0.00027397,2]
[311039580,1704886242208,-678.1,0.00027397,2]
[311039581,1704886242219,-678.1,0.00027397,2]
[311039582,1704886242231,-678.1,0.00027397,2]
[311039583,1704886242243,-678.1,0.00027397,2]
[311039584,1704886242253,-678.1,0.00027397,2]
[311039585,1704886242264,-678.28,0.00027397,2]
[311039586,1704886242273,-500.0,0.00027397,2]
[311039587,1704886242283,-506.65770087,0.00027397,2]
[311039588,1704886242292,-500.0,0.00027397,2]
[311039589,1704886242301,-500.0,0.00027397,2]
[311039591,1704886242311,-562.16150847,0.00027397,2]
[311039593,1704886242321,-500.0,0.00027397,2]
[311039595,1704886242330,-500.0,0.00027397,2]
[311039597,1704886242339,-524.12489659,0.00027397,2]
[311039599,1704886242348,-501.21999366,0.00027397,2]
[311039601,1704886242358,-564.33525738,0.00027397,2]
[311039602,1704886242367,-502.48980308,0.00027397,2]
[311039604,1704886242377,-500.0,0.00027397,2]
[311039605,1704886242386,-500.0,0.00027397,2]
[311039606,1704886242395,-503.43008667,0.00027397,2]
[311039607,1704886242404,-500.0,0.00027397,2]
[311039608,1704886242413,-500.0,0.00027397,2]
[311039609,1704886242422,-502.36378172,0.00027397,2]
[311039610,1704886242431,-502.44655997,0.00027397,2]
[311039611,1704886242441,-500.0,0.00027397,2]
[311039613,1704886242450,-503.17133488,0.00027397,2]
[311039615,1704886242460,-3364.67,0.00027397,2]
[311039617,1704886242469,-500.0,0.00027397,2]
[311039619,1704886242479,-503.59279333,0.00027397,2]
[311039621,1704886242488,-501.60891421,0.00027397,2]
[311039623,1704886242498,-500.92873917,0.00027397,2]
[311039624,1704886242507,-500.0,0.00027397,2]
[311039626,1704886242518,-501.81180643,0.00027397,2]
[311039628,1704886242527,-503.57217146,0.00027397,2]
[311039630,1704886242537,-503.73609041,0.00027397,2]
[311039632,1704886242546,-500.6363967,0.00027397,2]
[311039634,1704886242557,-501.3809648,0.00027397,2]
[311039636,1704886242566,-500.0,0.00027397,2]
[311039638,1704886242576,-500.0,0.00027397,2]
[311039640,1704886242586,-500.0,0.00027397,2]
[311039642,1704886242595,-500.0,0.00027397,2]
[311039644,1704886242604,-500.0,0.00027397,2]
[311039646,1704886242613,-541.98,0.00027397,2]
[311039648,1704886242622,-502.72071019,0.00027397,2]
[311039650,1704886242631,-249.06598029,0.00027397,2]
[311039651,1704886242640,-500.0,0.00027397,2]
[311039652,1704886242650,-500.0,0.00027397,2]
[311039654,1704886242659,-500.0,0.00027397,2]
[311039656,1704886242668,-500.0,0.00027397,2]
[311039658,1704886242678,-500.0,0.00027397,2]
[311039659,1704886242687,-500.30641269,0.00027397,2]
[311039660,1704886242697,-500.0,0.00027397,2]
[311039662,1704886242706,-500.0,0.00027397,2]
[311039669,1704886242807,-500.0,0.00027397,2]
[311039671,1704886242830,-500.0,0.00027397,2]
[311039672,1704886242839,-500.0,0.00027397,2]
[311039673,1704886242849,-500.0,0.00027397,2]
[311039675,1704886242859,-500.0,0.00027397,2]
[311039677,1704886242868,-500.0,0.00027397,2]
[311039678,1704886242877,-500.0,0.00027397,2]
[311039679,1704886242886,-500.0,0.00027397,2]
[311039680,1704886242895,-500.0,0.00027397,2]
[311039681,1704886242904,-500.99470575,0.00027397,2]
[311039682,1704886242914,-500.0,0.00027397,2]
[311039683,1704886242923,-1097.19,0.00027397,2]
[311039684,1704886242932,-500.0,0.00027397,2]
[311039685,1704886242942,-503.41150605,0.00027397,2]
[311039686,1704886242952,-500.0,0.00027397,2]
[311039687,1704886242961,-500.0,0.00027397,2]
[311039688,1704886242972,-500.0,0.00027397,2]
[311039689,1704886242982,-500.0,0.00027397,2]
[311039691,1704886242991,-500.0,0.00027397,2]
[311039692,1704886243001,-500.0,0.00027397,2]
[311039693,1704886243010,-500.0,0.00027397,2]
[311039695,1704886243020,-493.76665639,0.00027397,2]
[311039696,1704886243031,-500.0,0.00027397,2]
[311039697,1704886243040,-500.0,0.00027397,2]
[311039698,1704886243050,-1410.43,0.00027397,2]
[311039699,1704886243059,-500.0,0.00027397,2]
[311039700,1704886243070,-503.3951306,0.00027397,2]
[311039701,1704886243080,-504.30430713,0.00027397,2]
[311039702,1704886243090,-500.0,0.00027397,2]
[311039703,1704886243100,-500.0,0.00027397,2]
[311039704,1704886243111,-500.0,0.00027397,2]
[311039705,1704886243121,-7927.97,0.00027397,2]
[311039706,1704886243130,-500.70351278,0.00027397,2]
[311039707,1704886243140,-571.3599163,0.00027397,2]
[311039708,1704886243150,-500.0,0.00027397,2]
[311039709,1704886243160,-1195.82,0.00027397,2]
[311039710,1704886243170,-503.3769544,0.00027397,2]
[311039711,1704886243180,-500.0,0.00027397,2]
[311039712,1704886243189,-5686.09,0.00027397,2]
[311039713,1704886243200,-603.66307077,0.00027397,2]
[311039714,1704886243210,-500.0,0.00027397,2]
[311039715,1704886243220,-7362.5,0.00027397,2]
[311039716,1704886243229,-500.0,0.00027397,2]
[311039717,1704886243239,-501.48944674,0.00027397,2]
[311039718,1704886243248,-1584.24,0.00027397,2]
[311039719,1704886243258,-282.16174102,0.00027397,2]
[311039720,1704886243268,-500.0,0.00027397,2]
[311039721,1704886243277,-508.95269542,0.00027397,2]
[311039722,1704886243286,-197.2146599,0.00027397,2]
[311039723,1704886243296,-500.0,0.00027397,2]
[311039724,1704886243306,-356.23431548,0.00027397,2]
[311039725,1704886243316,-500.0,0.00027397,2]
[311039726,1704886243326,-500.0,0.00027397,2]
[311039727,1704886243335,-500.0,0.00027397,2]
[311039728,1704886243344,-500.0,0.00027397,2]
[311039729,1704886243354,-189.40971969,0.00027397,2]
[311039730,1704886243364,-636.28,0.00027397,2]
[311039731,1704886243374,-500.0,0.00027397,2]
[311039732,1704886243384,-500.2761618,0.00027397,2]
[311039733,1704886243394,-654.25,0.00027397,2]
[311039734,1704886243404,-500.0,0.00027397,2]
[311039735,1704886243414,-500.0,0.00027397,2]
[311039736,1704886243424,-1827.95,0.00027397,2]
[311039737,1704886243434,-500.0,0.00027397,2]
[311039738,1704886243443,-501.18202632,0.00027397,2]
[311039739,1704886243452,-500.0,0.00027397,2]
[311039740,1704886243462,-454.51255567,0.00027397,2]
[311039741,1704886243471,-5399.79,0.00027397,2]
[311039742,1704886243480,-502.84193222,0.00027397,2]
[311039743,1704886243489,-500.0,0.00027397,2]
[311039744,1704886243498,-500.0,0.00027397,2]
[311039745,1704886243507,-500.9561627,0.00027397,2]
[311039746,1704886243520,-500.0,0.00027397,2]
[311039747,1704886243530,-3385.97,0.00027397,2]
[311039748,1704886243539,-502.40935148,0.00027397,2]
[311039749,1704886243549,-500.0,0.00027397,2]
[311039750,1704886243559,-500.0,0.00027397,2]
[311039751,1704886243568,-500.0,0.00027397,2]
[311039752,1704886243578,-500.0,0.00027397,2]
[311039753,1704886243587,-500.0,0.00027397,2]
[311039754,1704886243597,-500.0,0.00027397,2]
[311039755,1704886243606,-500.0,0.00027397,2]
[311039756,1704886243616,-500.0,0.00027397,2]
[311039757,1704886243625,-500.0,0.00027397,2]
[311039758,1704886243634,-500.0,0.00027397,2]
[311039759,1704886243643,-500.0,0.00027397,2]
[311039760,1704886243652,-500.0,0.00027397,2]
[311039761,1704886243661,-500.0,0.00027397,2]
[311039762,1704886243670,-500.0,0.00027397,2]
[311039763,1704886243680,-500.0,0.00027397,2]
[311039764,1704886243689,-500.0,0.00027397,2]
[311039765,1704886243699,-253.12364064,0.00027397,2]
[311039766,1704886243708,-1000.0,0.00027397,4]
[311039767,1704886243718,-504.43357066,0.00027397,2]
[311039768,1704886243727,-500.0,0.00027397,2]
[311039769,1704886243737,-1942.53,0.00027397,2]
[311039770,1704886243746,-500.0,0.00027397,2]
[311039771,1704886243755,-44004.65,0.00027397,2]
[311039772,1704886243767,-500.0,0.00027397,2]
[311039773,1704886243776,-16678.37,0.00027397,2]
[311039774,1704886243785,-500.0,0.00027397,2]
[311039775,1704886243794,-2556.49,0.00027397,2]
[311039776,1704886243803,-501.05321242,0.00027397,2]
[311039777,1704886243813,-500.0,0.00027397,2]
[311039778,1704886243823,-1868.92,0.00027397,2]
[311039779,1704886243833,-500.0,0.00027397,2]
[311039780,1704886243842,-500.0,0.00027397,2]
[311039781,1704886243851,-501.04927739,0.00027397,2]
[311039782,1704886243860,-500.0,0.00027397,2]
[311039783,1704886243869,-500.0,0.00027397,2]
[311039784,1704886243878,-822.4,0.00027397,2]
[311039785,1704886243888,-500.0,0.00027397,2]
[311039786,1704886243897,-500.0,0.00027397,2]
[311039787,1704886243907,-501.9526429,0.00027397,2]
[311039788,1704886243916,-500.0,0.00027397,2]
[311039789,1704886243926,-500.0,0.00027397,2]
[311039790,1704886243935,-500.0,0.00027397,2]
[311039791,1704886243945,-500.0,0.00027397,2]
[311039792,1704886243954,-500.0,0.00027397,2]
[311039793,1704886243963,-874.31,0.00027397,2]
[311039794,1704886243973,-1000.0,0.00027397,2]
[311039795,1704886243983,-513.26199714,0.00027397,2]
[311039796,1704886243992,-500.0,0.00027397,2]
[311039797,1704886244002,-500.0,0.00027397,5]
[311039798,1704886244013,-501.51719285,0.00027397,2]